fUST/lending_fUST_20251019
["ID","MTS","AMOUNT","RATE_DAILY","PERIOD"]
[391813304,1760866239303,-438.85176947,0.00038356,30]
[391813305,1760866239313,-600.00262237,0.00038356,30]
[391813306,1760866239322,-168.0,0.00038465,2]
[391813307,1760866239331,-168.0,0.00038501,2]
[391813308,1760866239342,-168.0,0.00038561,2]
[391813309,1760866239352,-690.43206773,0.00038622,6]
[391813310,1760866239361,-800.0,0.00038622,7]
[391813311,1760866239371,-155.840698,0.00038641,30]
[391813312,1760866239380,-1260.8718697,0.00038743,2]
[391813313,1760866239389,-5279.8043565,0.00038743,2]
[391813314,1760866239399,-181.49,0.000389,120]
[391813315,1760866239409,-150.0,0.00038944,7]
[391813316,1760866239419,-3002.0,0.00039,120]
[391813317,1760866239428,-40252.10712645,0.00039,120]
[391813318,1760866239437,-75087.9,0.00039,60]
[391813319,1760866239449,-1999.0,0.00039013,120]
[391813320,1760866239458,-309.14,0.00039131,30]
[391813321,1760866239468,-151.0,0.00039131,2]
[391813322,1760866239477,-172.55,0.000392,23]
[391813323,1760866239487,-1633.892797,0.000394,30]
[391813324,1760866239496,-2072.566578,0.00039434,120]
[391813325,1760866239505,-2072.566578,0.00039434,120]
[391813326,1760866239515,-2072.566578,0.00039434,120]
[391813327,1760866239524,-2072.566578,0.00039434,120]
[391813328,1760866239534,-250.0,0.00039443,7]
[391813329,1760866239543,-514.84070869,0.00039443,7]
[391813330,1760866239552,-533.88981491,0.00039443,7]
[391813331,1760866239563,-553.64373807,0.00039443,7]
[391813332,1760866239572,-574.12855637,0.00039443,7]
[391813333,1760866239582,-595.37131296,0.00039443,7]
[391813334,1760866239592,-617.40005154,0.00039443,7]
[391813335,1760866239601,-640.24385345,0.00039443,7]
[391813336,1760866239611,-663.93287602,0.00039443,7]
[391813337,1760866239620,-688.49839244,0.00039443,7]
[391813338,1760866239630,-713.97283296,0.00039443,7]
[391813339,1760866239640,-740.38982778,0.00039443,7]
[391813340,1760866239649,-767.7842514,0.00039443,7]
[391813341,1760866239659,-796.19226871,0.00039443,7]
[391813342,1760866239669,-825.65138265,0.00039443,7]
[391813343,1760866239679,-800.0,0.00039444,7]
[391813344,1760866239688,-1372515.6145,0.00039444,7]
[391813345,1760866239699,-2072.566578,0.00039444,120]
[391813346,1760866239708,-2072.566578,0.00039444,120]
[391813347,1760866239718,-2072.566578,0.00039444,120]
[391813348,1760866239727,-2072.566578,0.00039444,120]
[391813349,1760866239738,-151.0,0.00039444,120]
[391813350,1760866239748,-502.2758091,0.00039473,5]
[391813351,1760866239757,-158.02097097,0.00039473,2]
[391813352,1760866239767,-188.42499591,0.00039473,5]
[391813353,1760866239777,-158.02096261,0.00039473,5]
[391813354,1760866239787,-158.42102406,0.00039473,2]
[391813355,1760866239797,-500.0,0.00039473,5]
[391813356,1760866239807,-259.03742233,0.00039473,5]
[391813358,1760866239817,-508.50294279,0.00039473,5]
[391813363,1760866239926,-158.22098913,0.00039473,5]
[391813364,1760866239936,-500.0,0.00039473,5]
[391813365,1760866239947,-500.0,0.00039473,5]
[391813366,1760866239956,-502.24080231,0.00039473,5]
[391813367,1760866239967,-501.02117527,0.00039473,5]
[391813369,1760866239977,-502.90136551,0.00039473,5]
[391813371,1760866239987,-30270.5,0.000395,120]
[391813373,1760866239996,-2000.0,0.000395,120]
[391813375,1760866240006,-200.0,0.00039518,120]
[391813376,1760866240016,-200.0,0.00039557,120]
[391813377,1760866240025,-251.4969714,0.000396,30]
[391813379,1760866240036,-200.0,0.00039662,120]
[391813381,1760866240046,-200.0,0.00039686,120]
[391813382,1760866240055,-187.455236,0.000397,60]
[391813383,1760866240064,-166.640241,0.000397,60]
[391813384,1760866240074,-1999.0,0.0003978,120]
[391813386,1760866240086,-1600.0,0.000398,120]
[391813387,1760866240095,-250.0,0.00039809,52]
[391813389,1760866240106,-496.47127164,0.00039809,52]
[391813390,1760866240115,-250.0,0.00039819,52]
[391813391,1760866240128,-478.75725327,0.00039819,52]
[391813392,1760866240137,-250.0,0.00039899,30]
[391813393,1760866240148,-461.67526834,0.00039899,30]
[391813394,1760866240159,-4376.78029826,0.000399,30]
[391813395,1760866240168,-160.01982415,0.00039973,5]
[391813396,1760866240177,-501.33272815,0.00039973,5]
[391813397,1760866240187,-411.68654279,0.00039973,5]
[391813398,1760866240197,-156.02070553,0.00039973,2]
[391813399,1760866240206,-158.42101567,0.00039973,5]
[391813400,1760866240216,-158.02096538,0.00039973,2]
[391813401,1760866240225,-1064.69812319,0.0003998,30]
[391813402,1760866240235,-448.6714144,0.00039998,30]
[391813403,1760866240244,-250.0,0.00039998,30]
[391813404,1760866240254,-250.0,0.00039998,31]
[391813405,1760866240263,-429.318,0.00039998,30]
[391813406,1760866240272,-445.202766,0.00039998,31]
[391813407,1760866240281,-1888.0,0.00039999,30]
[391813408,1760866240291,-250.0,0.00039999,30]
[391813409,1760866240300,-414.0,0.00039999,30]
[391813410,1760866240309,-398.11069659,0.00039999,31]
[391813411,1760866240318,-519.61918567,0.00039999,31]
[391813412,1760866240328,-487.89453967,0.00039999,31]
[391813413,1760866240338,-179.2084815,0.00039999,7]
[391813414,1760866240350,-1000.0,0.0004,120]
[391813415,1760866240359,-66901.01042189,0.0004,7]
[391813447,1760866403987,8575.4316277,0.00024141,2]
[391813448,1760866404009,10000.01,0.00024141,2]
[391813449,1760866404031,10000.01,0.00024141,2]
[391813450,1760866404052,1424.5483723,0.00024141,2]
[391813512,1760866546088,8575.4616277,0.00024141,2]
[391813513,1760866546110,10000.01,0.00024141,2]
[391813514,1760866546132,10000.01,0.00024141,2]
[391813515,1760866546154,10000.01,0.00024141,2]
[391813516,1760866546176,1424.5083723,0.00024141,2]
[391813519,1760867206888,457.41770742,0.00024142,2]
[391813545,1760867437239,-568.379999,0.00028,2]
[391813546,1760867437249,-500.0,0.00028151,7]
[391813547,1760867437258,-500.0,0.00028197,7]
[391813548,1760867437267,-502.33263446,0.00028279,7]
[391813549,1760867437276,-500.0,0.00030136,120]
[391813550,1760867437285,-500.0,0.00030273,120]
[391813551,1760867437300,-500.0,0.0003041,120]
[391813552,1760867437309,-502.61374463,0.0003042,7]
[391813553,1760867437318,-500.0,0.00030547,120]
[391813554,1760867437327,-500.0,0.00030684,120]
[391813556,1760867437336,-500.0,0.00030821,120]
[391813557,1760867437345,-1584.74118833,0.00030821,2]
[391813559,1760867437355,-500.0,0.00030958,120]
[391813561,1760867437365,-569.45826478,0.00031095,120]
[391813562,1760867437374,-160.0,0.00031277,2]
[391813563,1760867437383,-10720.7411139,0.00031629,2]
[391813564,1760867437392,-179.2084815,0.00031658,2]
[391813565,1760867437401,-1000.0,0.00031659,30]
[391813566,1760867437410,-150.0,0.00032689,2]
[391813567,1760867437419,-223.615365,0.00032787,2]
[391813568,1760867437428,-200.0,0.00033379,120]
[391813569,1760867437437,-160.13210646,0.00034,120]
[391813570,1760867437447,-205.88724234,0.00034,120]
[391813571,1760867437455,-171.65406042,0.00034,120]
[391813572,1760867437464,-236.79070837,0.00034,120]
[391813573,1760867437474,-168.22497343,0.00034,120]
[391813574,1760867437483,-171.72962963,0.00034,120]
[391813575,1760867437493,-763.23866509,0.00034,120]
[391813576,1760867437502,-1061.43647308,0.00034,120]
[391813577,1760867437511,-1030.63833144,0.00034,120]
[391813578,1760867437520,-161.17462155,0.00034,120]
[391813579,1760867437529,-206.16079534,0.00034,120]
[391813580,1760867437541,-189.47816555,0.00034,120]
[391813581,1760867437551,-1500.0,0.00034,60]
[391813582,1760867437560,-1500.0,0.00034,60]
[391813583,1760867437569,-1500.0,0.00034,60]
[391813584,1760867437578,-200.0,0.00034249,120]
[391813585,1760867437587,-160.13210646,0.00035,120]
[391813586,1760867437597,-205.88724234,0.00035,120]
[391813587,1760867437607,-171.65406042,0.00035,120]
[391813588,1760867437616,-236.79070837,0.00035,120]
[391813589,1760867437625,-171.72962963,0.00035,120]
[391813590,1760867437634,-168.22497343,0.00035,120]
[391813591,1760867437643,-763.23866509,0.00035,120]
[391813592,1760867437652,-1030.63833144,0.00035,120]
[391813594,1760867437661,-189.47816555,0.00035,120]
[391813596,1760867437671,-411.0,0.00036059,2]
[391813598,1760867437680,-160.13210646,0.000361,120]
[391813600,1760867437689,-236.79070837,0.000361,120]
[391813602,1760867437698,-763.23866509,0.000361,120]
[391813604,1760867437707,-1061.43647308,0.000361,120]
[391813605,1760867437716,-1030.63833144,0.000361,120]
[391813606,1760867437725,-189.47816555,0.000361,120]
[391813607,1760867437734,-168.0,0.00036561,2]
[391813608,1760867437742,-200.0,0.00036775,120]
[391813609,1760867437751,-168.0,0.00036884,2]
[391813610,1760867437761,-160.0,0.00036902,3]
[391813611,1760867437770,-236.79070837,0.000371,120]
[391813613,1760867437779,-763.23866509,0.000371,120]
[391813615,1760867437790,-1061.43647308,0.000371,120]
[391813617,1760867437800,-1030.63833144,0.000371,120]
[391813618,1760867437809,-189.47816555,0.000371,120]
[391813620,1760867437818,-236.79070837,0.000383,120]
[391813622,1760867437827,-763.23866509,0.000383,120]
[391813624,1760867437837,-1061.43647308,0.000383,120]
[391813625,1760867437846,-1030.63833144,0.000383,120]
[391813626,1760867437865,-189.47816555,0.000383,120]
[391813628,1760867437875,-700.0,0.00038356,7]
[391813630,1760867437884,-9826.98,0.00038356,30]
[391813632,1760867437894,-9826.98,0.00038356,30]
[391813634,1760867437903,-523.78,0.00038612,2]
[391813635,1760867437913,-527.96994559,0.00038643,2]
[391813636,1760867437923,-950.34590207,0.00038643,2]
[391813638,1760867437935,-1689.50382589,0.00038643,2]
[391813640,1760867437944,-2639.84972796,0.00038643,2]
[391813642,1760867437954,-201.72613436,0.00038643,2]
[391813644,1760867437963,-363.10704184,0.00038643,2]
[391813646,1760867437972,-645.52362994,0.00038643,2]
[391813648,1760867437981,-1008.63067178,0.00038643,2]
[391813650,1760867437991,-155.8857557,0.00038998,15]
[391813652,1760867438001,-9826.98,0.00038999,30]
[391813654,1760867438010,-949.58,0.00039,2]
[391813656,1760867438020,-1500.0,0.00039,120]
[391813658,1760867438029,-1500.0,0.00039,120]
[391813659,1760867438043,-1500.0,0.00039,120]
[391813660,1760867438053,-1500.0,0.00039,120]
[391813661,1760867438063,-1500.0,0.00039,120]
[391813662,1760867438073,-1500.0,0.00039,120]
[391813663,1760867438083,-411.0,0.00039059,2]
[391813664,1760867438092,-700.0,0.00039178,7]
[391813665,1760867438102,-168.0,0.00039344,2]
[391813666,1760867438112,-1087.4985427,0.00039444,7]
[391813667,1760867438122,-410.88912865,0.00039444,7]
[391813668,1760867438132,-184.90312507,0.00039623,2]
[391813669,1760867438142,-366.64,0.00039704,10]
[391813670,1760867438151,-34543.3768273,0.00039714,3]
[391813671,1760867438161,-69086.7536547,0.00039723,3]
[391813672,1760867438170,-9826.98,0.00039723,30]
[391813673,1760867438180,-9826.98,0.00039723,30]
[391813674,1760867438189,-1999.0,0.00039723,120]
[391813675,1760867438198,-103630.130482,0.00039724,3]
[391813676,1760867438208,-9826.98,0.00039724,30]
[391813677,1760867438218,-69086.7536547,0.00039725,3]
[391813678,1760867438227,-9826.98,0.00039732,30]
[391813679,1760867438237,-9826.98,0.00039733,30]
[391813680,1760867438247,-9826.98,0.00039733,30]
[391813681,1760867438257,-9826.98,0.00039733,30]
[391813682,1760867438267,-9826.98,0.00039733,30]
[391813683,1760867438277,-9826.98,0.00039733,30]
[391813684,1760867438290,-9826.98,0.00039733,30]
[391813685,1760867438300,-9826.98,0.00039733,30]
[391813686,1760867438309,-9826.98,0.00039733,30]
[391813687,1760867438319,-9826.98,0.00039733,30]
[391813688,1760867438329,-9826.98,0.00039733,30]
[391813689,1760867438339,-9826.98,0.00039734,30]
[391813690,1760867438348,-9826.98,0.00039734,30]
[391813691,1760867438358,-9826.98,0.00039734,30]
[391813692,1760867438367,-9826.98,0.00039734,30]
[391813693,1760867438377,-9826.98,0.00039734,30]
[391813694,1760867438387,-9826.98,0.00039734,30]
[391813695,1760867438396,-9827.11453822,0.00039734,30]
[391813696,1760867438406,-370000.0,0.00039735,2]
[391813697,1760867438415,-206.41336,0.00039735,120]
[391813698,1760867438424,-255.1,0.00039735,120]
[391813699,1760867438434,-198.41278124,0.00039735,120]
[391813700,1760867438443,-198.41278124,0.00039735,120]
[391813701,1760867438452,-272.04,0.00039735,120]
[391813702,1760867438461,-158.69558111,0.00039735,120]
[391813703,1760867438471,-158.69558111,0.00039735,120]
[391813704,1760867438480,-158.69558111,0.00039735,120]
[391813705,1760867438489,-1998.23127983,0.00039767,2]
[391813706,1760867438499,-501.70203365,0.00039773,5]
[391813707,1760867438508,-500.0,0.00039773,5]
[391813708,1760867438517,-160.01982415,0.00039773,5]
[391813709,1760867438526,-158.42101567,0.00039773,5]
[391813710,1760867438536,-501.33272815,0.00039773,5]
[391813711,1760867438547,-411.68654279,0.00039773,5]
[391813712,1760867438556,-156.02070553,0.00039773,2]
[391813713,1760867438566,-158.02096538,0.00039773,2]
[391813714,1760867438575,-150.25,0.000398,60]
[391813715,1760867438585,-92794.7591774,0.00039835,2]
[391813716,1760867438594,-3123.3587417,0.00039835,2]
[391813717,1760867438603,-2712.74,0.000399,14]
[391813718,1760867438613,-1998.23127983,0.000399,2]
[391813719,1760867438622,-206.41,0.000399,120]
[391813720,1760867438631,-198.41,0.000399,120]
[391813721,1760867438640,-158.69,0.000399,120]
[391813722,1760867438649,-8622.56443653,0.000399,2]
[391813723,1760867438659,-177.047738,0.0003999,2]
[391813724,1760867438668,-156.610099,0.0003999,2]
[391813725,1760867438678,-414.0,0.00039999,120]
[391813726,1760867438687,-429.318,0.00039999,120]
[391813727,1760867438697,-445.202766,0.00039999,120]
[391813728,1760867438707,-461.67526834,0.00039999,120]
[391813729,1760867438716,-478.75725327,0.00039999,120]
[391813730,1760867438725,-250.0,0.00039999,120]
[391813731,1760867438735,-496.47127164,0.00039999,120]
[391813732,1760867438745,-250.0,0.00039999,120]
[391813733,1760867438754,-514.84070869,0.00039999,120]
[391813734,1760867438764,-250.0,0.00039999,120]
[391813735,1760867438774,-533.88981491,0.00039999,120]
[391813736,1760867438784,-250.0,0.00039999,120]
[391813737,1760867438797,-553.64373807,0.00039999,120]
[391813738,1760867438807,-250.0,0.00039999,120]
[391813739,1760867438817,-574.12855637,0.00039999,120]
[391813740,1760867438827,-250.0,0.00039999,120]
[391813741,1760867438836,-323.49718196,0.00039999,120]
[391813742,1760867438846,-700.0,0.0004,7]
[391813743,1760867438856,-80972.3734312,0.0004,7]
[391813831,1760867443704,-232.0470921,0.00038998,15]
[391813832,1760867443714,-452.92288309,0.00038998,15]
[391813833,1760867443724,-161.726013,0.0003999,2]
[391813834,1760867443734,-627.81,0.0003999,10]
[391813835,1760867443745,-24485.08972512,0.0004,7]
[391813876,1760867446902,-981.39015998,0.0004,7]
[391813887,1760868172143,242.435443,0.00013699,2]
[391813888,1760868172345,242.435443,0.00020187,2]
[391813919,1760868632444,-394.8876212,0.00025105,2]
[391813920,1760868632454,-150.0,0.00025105,2]
[391813921,1760868632463,-454.77922316,0.000252,2]
[391813922,1760868632472,-160.0,0.00025296,2]
[391813923,1760868632482,-200.0,0.000253,2]
[391813924,1760868632491,-172.5,0.00025705,2]
[391813925,1760868632500,-195.0,0.00026305,2]
[391813926,1760868632510,-242.435443,0.00026676,2]
[391813927,1760868632519,-217.5,0.00026905,2]
[391813928,1760868632528,-240.0,0.00027505,2]
[391813929,1760868632537,-300.0,0.00027602,2]
[391813930,1760868632546,-300.0,0.00027602,2]
[391813931,1760868632555,-1200.0,0.00027602,2]
[391813932,1760868632564,-512.0,0.00027603,2]
[391813933,1760868632573,-19437.5520768,0.00027603,2]
[391813934,1760868632582,-194.82394137,0.00027604,2]
[391813935,1760868632590,-500.0,0.00027604,2]
[391813936,1760868632599,-344.1081198,0.00027604,2]
[391813937,1760868632608,-500.0,0.00027604,2]
[391813938,1760868632621,-500.0,0.00027604,2]
[391813939,1760868632629,-260.20746029,0.00027604,2]
[391813940,1760868632638,-360.00748376,0.00027604,2]
[391813941,1760868632647,-218.7,0.00027604,2]
[391813942,1760868632656,-262.5,0.00028105,2]
[391813943,1760868632665,-285.0,0.00028705,2]
[391813944,1760868632673,-195.07878282,0.00029305,2]
[391813945,1760868632682,-151.0,0.00029387,2]
[391813946,1760868632691,-160.0,0.0002985,2]
[391813947,1760868632700,-500.0,0.00030137,2]
[391813948,1760868632708,-271.53767988,0.00030137,2]
[391813949,1760868632717,-200.0,0.00030398,2]
[391813950,1760868632726,-350.30234304,0.00031312,2]
[391813951,1760868632735,-332.88753944,0.00032,8]
[391813952,1760868632744,-311.9424352,0.00032704,2]
[391813953,1760868632754,-242.435443,0.00033165,2]
[391813954,1760868632763,-152.14975246,0.000339,2]
[391813955,1760868632781,-594.69022612,0.00034,120]
[391813956,1760868632790,-188.36000919,0.00034,120]
[391813957,1760868632799,-2000.0,0.00034,60]
[391813958,1760868632808,-411.0,0.00034602,2]
[391813959,1760868632819,-594.69022612,0.00035,120]
[391813960,1760868632828,-188.36000919,0.00035,120]
[391813961,1760868632837,-594.69022612,0.000361,120]
[391813962,1760868632846,-188.36000919,0.000361,120]
[391813963,1760868632855,-203.27069726,0.00036899,30]
[391813964,1760868632863,-153.0,0.00036899,30]
[391813965,1760868632872,-153.0,0.00036899,30]
[391813966,1760868632881,-153.0,0.00036899,30]
[391813967,1760868632890,-153.0,0.00036899,30]
[391813968,1760868632899,-153.0,0.00036899,30]
[391813969,1760868632907,-153.0,0.00036899,30]
[391813970,1760868632916,-153.0,0.00036899,30]
[391813971,1760868632924,-153.0,0.00036899,30]
[391813972,1760868632933,-153.0,0.00036899,30]
[391813973,1760868632942,-153.0,0.00036899,30]
[391813974,1760868632950,-153.0,0.00036899,30]
[391813975,1760868632959,-153.0,0.00036899,30]
[391813976,1760868632968,-153.0,0.000369,30]
[391813977,1760868632976,-153.0,0.000369,30]
[391813978,1760868632986,-594.69022612,0.000371,120]
[391813979,1760868632995,-188.36000919,0.000371,120]
[391813980,1760868633003,-411.0,0.00037602,2]
[391813981,1760868633012,-1000.0,0.00037695,2]
[391813982,1760868633021,-767.93494172,0.00037695,2]
[391813983,1760868633030,-517.12,0.00038147,2]
[391813984,1760868633039,-594.69022612,0.000383,120]
[391813985,1760868633049,-500.0,0.00038356,7]
[391813986,1760868633058,-500.0,0.00039178,7]
[391813987,1760868633068,-793.5,0.00039234,4]
[391813988,1760868633077,-666.07709329,0.00039276,2]
[391813989,1760868633086,-523.18,0.00039324,10]
[391813990,1760868633095,-500.0,0.00039333,120]
[391813991,1760868633105,-1317.24446411,0.00039333,120]
[391813992,1760868633114,-426.16604716,0.00039333,15]
[391813993,1760868633123,-308.80132637,0.00039333,15]
[391813994,1760868633131,-181843.881228,0.00039334,3]
[391813995,1760868633141,-200.0,0.00039344,10]
[391813996,1760868633149,-200.0,0.00039344,10]
[391813997,1760868633268,-200.0,0.00039344,10]
[391813998,1760868633278,-200.0,0.00039344,10]
[391813999,1760868633287,-200.0,0.00039344,10]
[391814000,1760868633296,-200.0,0.00039344,10]
[391814001,1760868633305,-200.0,0.00039344,10]
[391814002,1760868633315,-200.0,0.00039344,10]
[391814003,1760868633324,-200.0,0.00039344,10]
[391814004,1760868633334,-200.0,0.00039344,10]
[391814005,1760868633343,-200.0,0.00039344,10]
[391814006,1760868633352,-200.0,0.00039344,10]
[391814007,1760868633362,-200.0,0.00039344,10]
[391814008,1760868633371,-200.0,0.00039344,10]
[391814009,1760868633380,-200.0,0.00039344,10]
[391814010,1760868633389,-200.0,0.00039344,10]
[391814011,1760868633398,-200.0,0.00039344,10]
[391814012,1760868633407,-200.0,0.00039344,10]
[391814013,1760868633415,-200.0,0.00039344,10]
[391814014,1760868633424,-200.0,0.00039344,10]
[391814015,1760868633433,-200.0,0.00039344,10]
[391814016,1760868633442,-200.0,0.00039344,10]
[391814017,1760868633451,-200.0,0.00039344,10]
[391814018,1760868633460,-200.0,0.00039344,10]
[391814019,1760868633469,-200.0,0.00039344,10]
[391814020,1760868633477,-200.0,0.00039344,10]
[391814021,1760868633486,-200.0,0.00039344,10]
[391814022,1760868633495,-200.0,0.00039344,10]
[391814023,1760868633504,-200.0,0.00039344,10]
[391814024,1760868633512,-200.0,0.00039344,10]
[391814025,1760868633521,-200.0,0.00039344,10]
[391814026,1760868633529,-200.0,0.00039344,10]
[391814027,1760868633538,-200.0,0.00039344,10]
[391814028,1760868633547,-200.0,0.00039344,10]
[391814029,1760868633556,-200.0,0.00039344,10]
[391814030,1760868633565,-200.0,0.00039344,10]
[391814031,1760868633575,-200.0,0.00039344,10]
[391814032,1760868633584,-200.0,0.00039344,10]
[391814033,1760868633593,-200.0,0.00039344,10]
[391814034,1760868633602,-328.181467,0.00039344,10]
[391814035,1760868633611,-370000.0,0.00039344,2]
[391814036,1760868633619,-168.0,0.00039376,2]
[391814037,1760868633628,-500.0,0.0003947,120]
[391814038,1760868633640,-168.0,0.00039503,2]
[391814039,1760868633649,-168.0,0.00039554,2]
[391814040,1760868633658,-666.07709327,0.00039588,2]
[391814041,1760868633667,-152.14975246,0.000396,2]
[391814042,1760868633678,-242.435443,0.00039654,2]
[391814043,1760868633688,-160.0,0.0003974,30]
[391814044,1760868633697,-151.0,0.000399,15]
[391814045,1760868633707,-151.0,0.000399,17]
[391814046,1760868633715,-40457.54208326,0.000399,30]
[391814047,1760868633726,-666.07709327,0.000399,2]
[391814048,1760868633735,-7760.30799285,0.000399,2]
[391814049,1760868633744,-22730.4851535,0.00039907,3]
[391814050,1760868633752,-1354.7303142,0.00039917,2]
[391814051,1760868633762,-21027.477253,0.00039917,2]
[391814052,1760868633771,-852.4184114,0.00039917,2]
[391814053,1760868633779,-173.217307,0.0003994,2]
[391814054,1760868633788,-500.17728316,0.00039973,5]
[391814055,1760868633797,-501.73946596,0.00039973,5]
[391814056,1760868633806,-500.75193016,0.00039973,5]
[391814057,1760868633816,-500.75598611,0.00039973,5]
[391814058,1760868633825,-500.0,0.00039973,5]
[391814059,1760868633834,-22730.4851535,0.0003998,3]
[391814060,1760868633843,-22730.4851535,0.0003999,3]
[391814061,1760868633853,-151.0,0.00039998,30]
[391814062,1760868633862,-504.64355496,0.00039998,30]
[391814063,1760868633871,-151.0,0.00039999,30]
[391814064,1760868633879,-414.0,0.00039999,30]
[391814065,1760868633888,-500.0,0.0004,7]
[391814066,1760868633897,-265217.69306267,0.0004,7]
[391814067,1760868633905,-993.0,0.0004,26]
[391814068,1760868633914,-500.0,0.0004,2]
[391814069,1760868633923,-1310.17149221,0.0004,120]
[391814070,1760868633931,-1236708.17062562,0.0004,7]
[391814071,1760868633939,-651.91856393,0.0004,120]
[391814072,1760868633948,-256.23,0.0004,3]
[391814073,1760868633957,-176.49,0.0004,60]
[391814074,1760868633966,-500.0,0.0004,5]
[391814075,1760868633974,-250.0,0.0004,14]
[391814076,1760868633983,-168.3,0.0004,14]
[391814077,1760868633992,-199.59639597,0.0004,30]
[391814078,1760868634000,-500.0,0.0004,5]
[391814079,1760868634009,-500.0,0.0004,5]
[391814080,1760868634018,-520.51,0.0004,2]
[391814081,1760868634027,-4696.99,0.0004,14]
[391814082,1760868634036,-160.0,0.0004,4]
[391814083,1760868634045,-284.94500978,0.0004,5]
[391814084,1760868634054,-2441.46,0.0004,14]
[391814085,1760868634065,-151.0,0.0004,120]
[391814086,1760868634074,-151.0,0.0004,120]
[391814087,1760868634082,-151.0,0.0004,120]
[391814088,1760868634091,-251.4969714,0.0004,120]
[391814089,1760868634100,-173.217307,0.0004,30]
[391814090,1760868634109,-156.610099,0.0004,30]
[391814091,1760868634118,-275.288894,0.0004,120]
[391814092,1760868634127,-275.288894,0.0004,120]
[391814093,1760868634136,-1113.45643522,0.0004,30]
[391814094,1760868634146,-275.288894,0.0004,120]
[391814095,1760868634154,-275.288894,0.0004,120]
[391814096,1760868634164,-1243.539947,0.0004,120]
[391814097,1760868634172,-1243.539947,0.0004,120]
[391814098,1760868634181,-1243.539947,0.0004,120]
[391814099,1760868634190,-1243.539947,0.0004,120]
[391814100,1760868634198,-200.0,0.00040026,120]
[391814101,1760868634207,-200.0,0.00040102,120]
[391814102,1760868634217,-504.20565272,0.00040155,5]
[391814103,1760868634226,-502.91058292,0.00040155,5]
[391814104,1760868634235,-502.66215517,0.00040155,5]
[391814105,1760868634244,-158.02096261,0.00040155,2]
[391814106,1760868634252,-500.0,0.00040155,5]
[391814107,1760868634261,-500.0,0.00040155,5]
[391814108,1760868634270,-500.0,0.00040155,5]
[391814109,1760868634280,-502.62112472,0.00040155,5]
[391814110,1760868634289,-500.0,0.00040155,5]
[391814111,1760868634298,-500.0,0.000405,120]
[391814112,1760868634307,-1000.0,0.00040521,5]
[391814113,1760868634317,-411.0,0.00040602,2]
[391814114,1760868634325,-668.98799,0.000407,120]
[391814115,1760868634334,-312.65866,0.000407,120]
[391814116,1760868634343,-1000.0,0.00040703,5]
[391814117,1760868634352,-1000.0,0.00040703,5]
[391814118,1760868634361,-1000.0,0.00040703,5]
[391814119,1760868634370,-1000.0,0.00040703,5]
[391814120,1760868634378,-639.78,0.00040724,3]
[391814121,1760868634387,-319.89,0.00040724,3]
[391814122,1760868634396,-159.95,0.00040724,3]
[391814123,1760868634405,-479.87,0.00040724,3]
[391814124,1760868634414,-399315.01234401,0.00040734,120]
[391814125,1760868634427,-1850.30398527,0.00040734,120]
[391814126,1760868634437,-3352.94695783,0.00040734,120]
[391814152,1760868638219,-18618.89188073,0.00040734,120]
[391814170,1760868638381,-361.57439764,0.00040734,120]
[391814374,1760868643593,-435.98,0.00040724,10]
[391814376,1760868643602,-10372.52254878,0.00040734,120]
[391814483,1760869742347,300.0,0.00024141,2]
[391814484,1760869801555,300.0,0.00024141,2]